fUST/lending_fUST_20240225
["ID","MTS","AMOUNT","RATE_DAILY","PERIOD"]
[315104721,1708824640537,-500.0,0.00019178,2]
[315104722,1708824640547,-504.84228172,0.00019178,2]
[315104723,1708824640557,-500.0,0.00019178,2]
[315104724,1708824640567,-500.0,0.00019178,2]
[315104725,1708824640581,-794.27,0.00019178,2]
[315104726,1708824640591,-794.27,0.00019178,2]
[315104727,1708824640601,-500.0,0.00019178,2]
[315104728,1708824640611,-500.0,0.00019178,2]
[315104729,1708824640622,-500.0,0.00019178,2]
[315104730,1708824640631,-500.0,0.00019178,2]
[315104731,1708824640641,-500.0,0.00019178,2]
[315104732,1708824640650,-513.35575902,0.00019178,2]
[315104733,1708824640660,-500.0,0.00019178,2]
[315104734,1708824640670,-500.0,0.00019178,2]
[315104735,1708824640679,-500.65626971,0.00019178,2]
[315104736,1708824640689,-500.0,0.00019178,2]
[315104737,1708824640698,-584.40042773,0.00019178,2]
[315104738,1708824640708,-308.74436964,0.00019178,2]
[315104739,1708824640718,-500.0,0.00019178,2]
[315104740,1708824640727,-500.0,0.00019178,2]
[315104741,1708824640737,-500.32163985,0.00019178,2]
[315104742,1708824640747,-1710.98,0.00019178,2]
[315104743,1708824640757,-500.0,0.00019178,2]
[315104744,1708824640767,-640.08522853,0.00019178,2]
[315104745,1708824640777,-1001.4898384,0.00019178,2]
[315104746,1708824640787,-500.0,0.00019178,2]
[315104747,1708824640797,-824.07,0.00019178,2]
[315104748,1708824640809,-500.0,0.00019178,2]
[315104749,1708824640819,-500.0,0.00019178,2]
[315104750,1708824640830,-500.58320091,0.00019178,2]
[315104751,1708824640839,-500.0,0.00019178,2]
[315104752,1708824640850,-480.17410999,0.00019178,2]
[315104753,1708824640861,-500.0,0.00019178,2]
[315104754,1708824640871,-1539.99,0.00019178,2]
[315104755,1708824640881,-500.0,0.00019178,2]
[315104756,1708824640891,-500.0,0.00019178,2]
[315104757,1708824640903,-414.28704644,0.00019178,2]
[315104759,1708824640912,-563.15,0.00019178,2]
[315104760,1708824640923,-500.0,0.00019178,2]
[315104761,1708824640933,-500.0,0.00019178,2]
[315104762,1708824640943,-500.0,0.00019178,2]
[315104763,1708824640952,-500.0,0.00019178,2]
[315104764,1708824640962,-500.0,0.00019178,2]
[315104765,1708824640974,-500.0,0.00019178,2]
[315104766,1708824640987,-500.0,0.00019178,2]
[315104767,1708824640999,-500.0,0.00019178,2]
[315104768,1708824641010,-500.0,0.00019178,2]
[315104769,1708824641023,-355.07638168,0.00019178,2]
[315104770,1708824641036,-500.0,0.00019178,2]
[315104771,1708824641047,-500.0,0.00019178,2]
[315104772,1708824641058,-500.0,0.00019178,2]
[315104773,1708824641068,-500.0,0.00019178,2]
[315104774,1708824641080,-500.0,0.00019178,2]
[315104775,1708824641090,-500.0,0.00019178,2]
[315104776,1708824641101,-500.0,0.00019178,2]
[315104777,1708824641112,-500.0,0.00019178,2]
[315104778,1708824641122,-400.00000001,0.00019178,2]
[315104779,1708824641134,-556.06890107,0.00019178,2]
[315104780,1708824641145,-500.0,0.00019178,2]
[315104781,1708824641155,-500.0,0.00019178,2]
[315104782,1708824641165,-500.0,0.00019178,2]
[315104783,1708824641178,-617.78113522,0.00019178,2]
[315104784,1708824641189,-500.0,0.00019178,2]
[315104785,1708824641199,-507.90795314,0.00019178,2]
[315104786,1708824641210,-545.57,0.00019178,2]
[315104787,1708824641221,-500.0,0.00019178,2]
[315104788,1708824641234,-500.0,0.00019178,2]
[315104789,1708824641244,-500.0,0.00019178,2]
[315104790,1708824641254,-500.0,0.00019178,2]
[315104791,1708824641265,-500.0,0.00019178,2]
[315104792,1708824641275,-500.0,0.00019178,2]
[315104793,1708824641286,-500.0,0.00019178,2]
[315104794,1708824641296,-500.0,0.00019178,2]
[315104795,1708824641306,-500.0,0.00019178,2]
[315104796,1708824641317,-500.0,0.00019178,2]
[315104797,1708824641327,-500.0,0.00019178,2]
[315104798,1708824641338,-500.0,0.00019178,2]
[315104799,1708824641348,-834.84,0.00019178,2]
[315104800,1708824641357,-500.0,0.00019178,2]
[315104801,1708824641367,-500.0,0.00019178,2]
[315104802,1708824641377,-588.7512666,0.00019178,2]
[315104803,1708824641386,-500.0,0.00019178,2]
[315104804,1708824641396,-500.0,0.00019178,2]
[315104805,1708824641405,-500.0,0.00019178,2]
[315104806,1708824641553,-500.0,0.00019178,2]
[315104807,1708824641565,-352.51950847,0.00019178,2]
[315104808,1708824641575,-500.0,0.00019178,2]
[315104809,1708824641589,-495.29967306,0.00019178,2]
[315104810,1708824641597,-172.88097045,0.00019178,2]
[315104811,1708824641607,-500.0,0.00019178,2]
[315104812,1708824641619,-1082.23,0.00019178,2]
[315104813,1708824641629,-501.14513098,0.00019178,2]
[315104814,1708824641638,-958.88,0.00019178,2]
[315104815,1708824641648,-1555.93,0.00019178,2]
[315104816,1708824641658,-500.0,0.00019178,2]
[315104817,1708824641668,-500.0,0.00019178,2]
[315104818,1708824641677,-291.90679789,0.00019178,2]
[315104819,1708824641687,-500.0,0.00019178,2]
[315104820,1708824641696,-500.0,0.00019178,2]
[315104821,1708824641706,-232.87720135,0.00019178,2]
[315104822,1708824641715,-500.0,0.00019178,2]
[315104823,1708824641725,-500.0,0.00019178,2]
[315104824,1708824641736,-500.0,0.00019178,2]
[315104825,1708824641746,-500.0,0.00019178,2]
[315104826,1708824641756,-500.0,0.00019178,2]
[315104827,1708824641767,-500.0,0.00019178,2]
[315104828,1708824641780,-364.20317653,0.00019178,2]
[315104829,1708824641790,-500.0,0.00019178,2]
[315104830,1708824641800,-500.0,0.00019178,2]
[315104831,1708824641811,-1148.25,0.00019178,2]
[315104832,1708824641822,-500.0,0.00019178,2]
[315104833,1708824641832,-500.0,0.00019178,2]
[315104834,1708824641842,-500.0,0.00019178,2]
[315104835,1708824641854,-500.0,0.00019178,2]
[315104836,1708824641866,-5617.97,0.00019178,2]
[315104837,1708824641878,-500.0,0.00019178,2]
[315104838,1708824641889,-806.6,0.00019178,2]
[315104839,1708824641899,-500.0,0.00019178,2]
[315104840,1708824641910,-500.0,0.00019178,2]
[315104841,1708824641921,-500.0,0.00019178,2]
[315104842,1708824641931,-500.0,0.00019178,2]
[315104843,1708824641941,-500.0,0.00019178,2]
[315104844,1708824641950,-500.0,0.00019178,2]
[315104845,1708824641960,-303.24755095,0.00019178,2]
[315104846,1708824641971,-500.0,0.00019178,2]
[315104847,1708824641982,-500.0,0.00019178,2]
[315104848,1708824641992,-403.29293715,0.00019178,2]
[315104849,1708824642002,-500.0,0.00019178,2]
[315104850,1708824642013,-500.0,0.00019178,2]
[315104851,1708824642025,-442.29339746,0.00019178,2]
[315104852,1708824642036,-500.0,0.00019178,2]
[315104853,1708824642046,-500.0,0.00019178,2]
[315104854,1708824642057,-368.39663625,0.00019178,2]
[315104855,1708824642066,-500.0,0.00019178,2]
[315104856,1708824642075,-500.65767125,0.00019178,2]
[315104857,1708824642085,-500.0,0.00019178,2]
[315104858,1708824642094,-500.0,0.00019178,2]
[315104859,1708824642104,-501.12884996,0.00019178,2]
[315104860,1708824642114,-500.0,0.00019178,2]
[315104861,1708824642123,-500.0,0.00019178,2]
[315104862,1708824642135,-500.0,0.00019178,2]
[315104863,1708824642145,-377.76735061,0.00019178,2]
[315104864,1708824642154,-500.0,0.00019178,2]
[315104865,1708824642163,-500.0,0.00019178,2]
[315104867,1708824642172,-500.0,0.00019178,2]
[315104868,1708824642181,-571.29194225,0.00019178,2]
[315104870,1708824642190,-500.0,0.00019178,2]
[315104872,1708824642200,-500.0,0.00019178,2]
[315104873,1708824642209,-500.0,0.00019178,2]
[315104874,1708824642218,-500.0,0.00019178,2]
[315104875,1708824642227,-501.00930831,0.00019178,2]
[315104876,1708824642237,-500.0,0.00019178,2]
[315104877,1708824642246,-500.0,0.00019178,2]
[315104878,1708824642255,-500.0,0.00019178,2]
[315104879,1708824642264,-500.0,0.00019178,2]
[315104880,1708824642273,-7339.39,0.00019178,2]
[315104881,1708824642282,-500.0,0.00019178,2]
[315104882,1708824642291,-500.0,0.00019178,2]
[315104883,1708824642300,-4681.05,0.00019178,2]
[315104884,1708824642309,-584.56,0.00019178,2]
[315104885,1708824642319,-500.0,0.00019178,2]
[315104886,1708824642328,-500.0,0.00019178,2]
[315104887,1708824642337,-500.0,0.00019178,2]
[315104888,1708824642347,-500.0,0.00019178,2]
[315104889,1708824642357,-500.0,0.00019178,2]
[315104890,1708824642367,-500.0,0.00019178,2]
[315104891,1708824642376,-500.73890454,0.00019178,2]
[315104892,1708824642386,-500.0,0.00019178,2]
[315104893,1708824642395,-500.0,0.00019178,2]
[315104894,1708824642404,-500.0,0.00019178,2]
[315104895,1708824642414,-500.0,0.00019178,2]
[315104896,1708824642424,-500.0,0.00019178,2]
[315104897,1708824642433,-282.88303232,0.00019178,2]
[315104898,1708824642442,-3034.83,0.00019178,2]
[315104899,1708824642451,-556.5,0.00019178,2]
[315104900,1708824642461,-2122.58,0.00019178,2]
[315104901,1708824642471,-5391.44,0.00019178,2]
[315104902,1708824642480,-650.44,0.00019178,2]
[315104903,1708824642490,-484.78361843,0.00019178,2]
[315104904,1708824642500,-500.90031616,0.00019178,2]
[315104905,1708824642509,-187.1546475,0.00019178,2]
[315104906,1708824642518,-500.0,0.00019178,2]
[315104907,1708824642528,-1306.6,0.00019178,2]
[315104908,1708824642538,-500.0,0.00019178,2]
[315104909,1708824642547,-500.0,0.00019178,2]
[315104910,1708824642557,-500.0,0.00019178,2]
[315104912,1708824642567,-500.0,0.00019178,2]
[315104914,1708824642577,-500.0,0.00019178,2]
[315104915,1708824642590,-500.0,0.00019178,2]
[315104916,1708824642599,-500.36762449,0.00019178,2]
[315104917,1708824642609,-500.0,0.00019178,2]
[315104918,1708824642618,-500.0,0.00019178,2]
[315104919,1708824642628,-500.0,0.00019178,2]
[315104920,1708824642636,-500.0,0.00019178,2]
[315104921,1708824642645,-503.08902147,0.00019178,2]
[315104922,1708824642655,-500.0,0.00019178,2]
[315104923,1708824642665,-500.0,0.00019178,2]
[315104924,1708824642674,-500.0,0.00019178,2]
[315104925,1708824642683,-500.0,0.00019178,2]
[315104926,1708824642692,-500.0,0.00019178,2]
[315104928,1708824642702,-883.37,0.00019178,2]
[315104929,1708824642711,-501.42454899,0.00019178,2]
[315104931,1708824642720,-500.0,0.00019178,2]
[315104932,1708824642729,-500.76347934,0.00019178,2]
[315104933,1708824642738,-500.59768384,0.00019178,2]
[315104934,1708824642747,-1001.07,0.00019178,2]
[315104935,1708824642757,-607.29732845,0.00019178,2]
[315104936,1708824642766,-501.87606663,0.00019178,2]
[315104937,1708824642775,-532.71621109,0.00019178,2]
[315104938,1708824642784,-502.10212227,0.00019178,2]
[315104939,1708824642793,-500.0,0.00019178,2]
[315104940,1708824642802,-501.29042956,0.00019178,2]
[315104941,1708824642811,-500.0,0.00019178,2]
[315104942,1708824642820,-500.52544546,0.00019178,2]
[315104943,1708824642830,-1331.09,0.00019178,2]
[315104944,1708824642839,-635.0,0.00019178,2]
[315104945,1708824642848,-503.79673122,0.00019178,2]
[315104946,1708824642857,-1397.13,0.00019178,2]
[315104947,1708824642866,-500.0,0.00019178,2]
[315104948,1708824642876,-500.0,0.00019178,2]
[315104950,1708824642885,-501.96670792,0.00019178,2]
[315104951,1708824642895,-500.27867122,0.00019178,2]
[315104952,1708824642905,-500.0,0.00019178,2]
[315104953,1708824642916,-516.71010553,0.00019178,2]
[315104954,1708824642925,-321.93146114,0.00019178,2]
[315104955,1708824642934,-412.53102785,0.00019178,2]
[315104956,1708824642944,-500.0,0.00019178,2]
[315104957,1708824642954,-229.93168318,0.00019178,2]
[315104958,1708824642964,-204.55015164,0.00019178,2]
[315104959,1708824642974,-500.0,0.00019178,2]
[315104960,1708824642984,-516.71010553,0.00019178,2]
[315104961,1708824642993,-500.0,0.00019178,2]
[315104962,1708824643004,-516.71010553,0.00019178,2]
[315104963,1708824643014,-500.0,0.00019178,2]
[315104964,1708824643025,-198.58317025,0.00019178,2]
[315104965,1708824643036,-500.0,0.00019178,2]
[315104966,1708824643046,-516.71010553,0.00019178,2]
[315104967,1708824643056,-500.0,0.00019178,2]
[315104968,1708824643066,-516.71010553,0.00019178,2]
[315104969,1708824643075,-500.0,0.00019178,2]
[315104970,1708824643084,-516.71010553,0.00019178,2]
[315104971,1708824643093,-500.0,0.00019178,2]
[315104972,1708824643102,-500.0,0.00019178,2]
[315104973,1708824643111,-516.71010553,0.00019178,2]
[315104974,1708824643120,-500.0,0.00019178,2]
[315104975,1708824643130,-500.0,0.00019178,2]
[315104976,1708824643139,-516.71010553,0.00019178,2]
[315104977,1708824643149,-500.0,0.00019178,2]
[315104978,1708824643159,-516.71010553,0.00019178,2]
[315104979,1708824643168,-500.0,0.00019178,2]
[315104980,1708824643178,-543.6424426,0.00019178,2]
[315104981,1708824643188,-516.71010553,0.00019178,2]
[315104982,1708824643197,-500.0,0.00019178,2]
[315104983,1708824643207,-516.71010553,0.00019178,2]
[315104984,1708824643215,-500.0,0.00019178,2]
[315104985,1708824643225,-500.0,0.00019178,2]
[315104986,1708824643234,-516.71010553,0.00019178,2]
[315104987,1708824643243,-500.0,0.00019178,2]
[315104988,1708824643252,-516.71010553,0.00019178,2]
[315104989,1708824643261,-500.0,0.00019178,2]
[315104990,1708824643270,-516.71010553,0.00019178,2]
[315104991,1708824643279,-309.89473186,0.00019178,2]
[315104992,1708824643288,-516.71010553,0.00019178,2]
[315104993,1708824643297,-500.0,0.00019178,2]
[315104994,1708824643306,-500.0,0.00019178,2]
[315104995,1708824643315,-516.71010553,0.00019178,2]
[315104996,1708824643325,-516.71010553,0.00019178,2]
[315104997,1708824643334,-500.0,0.00019178,2]
[315104998,1708824643343,-500.0,0.00019178,2]
[315104999,1708824643353,-516.71010553,0.00019178,2]
[315105000,1708824643363,-500.0,0.00019178,2]
[315105001,1708824643372,-500.0,0.00019178,2]
[315105002,1708824643382,-516.71010553,0.00019178,2]
[315105003,1708824643391,-500.0,0.00019178,2]
[315105004,1708824643400,-516.71010553,0.00019178,2]
[315105005,1708824643409,-500.0,0.00019178,2]
[315105006,1708824643418,-500.0,0.00019178,2]
[315105007,1708824643428,-516.71010553,0.00019178,2]
[315105008,1708824643437,-500.0,0.00019178,2]
[315105009,1708824643447,-516.71010553,0.00019178,2]
[315105010,1708824643456,-500.0,0.00019178,2]
[315105011,1708824643466,-516.71010553,0.00019178,2]
[315105012,1708824643475,-500.0,0.00019178,2]
[315105013,1708824643484,-516.71010553,0.00019178,2]
[315105014,1708824643493,-500.0,0.00019178,2]
[315105015,1708824643502,-516.71010553,0.00019178,2]
[315105016,1708824643512,-500.0,0.00019178,2]
[315105017,1708824643522,-516.71010553,0.00019178,2]
[315105018,1708824643531,-500.0,0.00019178,2]
[315105019,1708824643541,-516.71010553,0.00019178,2]
[315105020,1708824643550,-500.0,0.00019178,2]
[315105021,1708824643559,-500.0,0.00019178,2]
[315105022,1708824643570,-516.71010553,0.00019178,2]
[315105023,1708824643581,-500.0,0.00019178,2]
[315105024,1708824643591,-516.71010553,0.00019178,2]
[315105025,1708824643601,-500.0,0.00019178,2]
[315105026,1708824643611,-516.71010553,0.00019178,2]
[315105027,1708824643620,-500.0,0.00019178,2]
[315105028,1708824643629,-516.71010553,0.00019178,2]
[315105029,1708824643639,-500.0,0.00019178,2]
[315105030,1708824643648,-500.0,0.00019178,2]
[315105031,1708824643658,-516.71010553,0.00019178,2]
[315105032,1708824643667,-500.0,0.00019178,2]
[315105033,1708824643676,-516.71010553,0.00019178,2]
[315105034,1708824643685,-500.0,0.00019178,2]
[315105035,1708824643694,-500.0,0.00019178,2]
[315105036,1708824643703,-516.71010553,0.00019178,2]
[315105037,1708824643712,-516.71010553,0.00019178,2]
[315105038,1708824643722,-516.71010553,0.00019178,2]
[315105039,1708824643731,-500.0,0.00019178,2]
[315105040,1708824643740,-516.71010553,0.00019178,2]
[315105041,1708824643750,-500.0,0.00019178,2]
[315105042,1708824643760,-500.0,0.00019178,2]
[315105043,1708824643769,-516.71010553,0.00019178,2]
[315105044,1708824643777,-500.0,0.00019178,2]
[315105045,1708824643787,-516.71010553,0.00019178,2]
[315105046,1708824643796,-500.0,0.00019178,2]
[315105047,1708824643806,-516.71010553,0.00019178,2]
[315105048,1708824643815,-500.0,0.00019178,2]
[315105049,1708824643825,-516.71010553,0.00019178,2]
[315105050,1708824643834,-500.0,0.00019178,2]
[315105051,1708824643845,-500.0,0.00019178,2]
[315105052,1708824643856,-500.0,0.00019178,2]
[315105053,1708824643865,-500.0,0.00019178,2]
[315105054,1708824643875,-500.0,0.00019178,2]
[315105055,1708824643885,-516.71010553,0.00019178,2]
[315105056,1708824643895,-500.0,0.00019178,2]
[315105057,1708824643909,-516.71010553,0.00019178,2]
[315105058,1708824643919,-516.71010553,0.00019178,2]
[315105059,1708824643929,-516.71010553,0.00019178,2]
[315105060,1708824643939,-516.71010553,0.00019178,2]
[315105061,1708824643948,-516.71010553,0.00019178,2]
[315105062,1708824643958,-516.71010553,0.00019178,2]
[315105063,1708824643968,-450.85599083,0.00019178,2]
[315105064,1708824643978,-516.71010553,0.00019178,2]
[315105065,1708824643989,-516.71010553,0.00019178,2]
[315105066,1708824643999,-500.92327081,0.00019178,2]
[315105067,1708824644009,-516.71010553,0.00019178,2]
[315105068,1708824644019,-516.71010553,0.00019178,2]
[315105069,1708824644029,-516.71010553,0.00019178,2]
[315105070,1708824644038,-516.71010553,0.00019178,2]
[315105071,1708824644048,-516.71010553,0.00019178,2]
[315105072,1708824644058,-516.71010553,0.00019178,2]
[315105073,1708824644068,-516.71010553,0.00019178,2]
[315105074,1708824644077,-516.71010553,0.00019178,2]
[315105075,1708824644087,-183.137522,0.00019178,2]
[315105076,1708824644096,-166.666666,0.00019178,2]
[315105077,1708824644106,-500.0,0.00019232,2]
[315105078,1708824644117,-323.06323872,0.00019284,2]
[315105079,1708824644126,-500.0,0.00019287,2]
[315105080,1708824644136,-500.0,0.00019342,2]
[315105081,1708824644145,-500.0,0.00019396,2]
[315105082,1708824644154,-794.27,0.00019451,2]
[315105083,1708824644163,-794.27,0.00019451,2]
[315105084,1708824644172,-500.0,0.00019451,2]
[315105085,1708824644182,-500.0,0.00019451,2]
[315105086,1708824644283,-500.0,0.00019451,2]
[315105087,1708824644293,-500.0,0.00019451,2]
[315105088,1708824644304,-500.0,0.00019452,2]
[315105089,1708824644314,-198.51434703,0.00019452,2]
[315105090,1708824644324,-500.0,0.00019452,2]
[315105091,1708824644333,-500.0,0.00019452,2]
[315105092,1708824644342,-500.0,0.00019452,2]
[315105093,1708824644352,-179.23,0.00019452,2]
[315105094,1708824644361,-500.0,0.00019452,2]
[315105095,1708824644370,-539.55,0.00019452,2]
[315105096,1708824644379,-500.0,0.00019452,2]
[315105097,1708824644388,-500.0,0.00019452,2]
[315105098,1708824644397,-500.0,0.00019452,2]
[315105099,1708824644406,-405.49221772,0.00019452,2]
[315105100,1708824644416,-300.0,0.00019452,2]
[315105101,1708824644425,-500.0,0.00019452,2]
[315105102,1708824644434,-234.72141157,0.00019452,2]
[315105103,1708824644443,-158.76788744,0.00019452,2]
[315105104,1708824644453,-500.0,0.00019452,2]
[315105105,1708824644462,-500.0,0.00019452,2]
[315105106,1708824644472,-840.58,0.00019452,2]
[315105107,1708824644481,-500.0,0.00019452,2]
[315105108,1708824644490,-500.0,0.00019452,2]
[315105109,1708824644499,-453.0367065,0.00019452,2]
[315105110,1708824644509,-500.0,0.00019452,2]
[315105111,1708824644519,-500.0,0.00019452,2]
[315105112,1708824644528,-500.0,0.00019452,2]
[315105113,1708824644543,-500.0,0.00019452,2]
[315105114,1708824644557,-500.0,0.00019452,2]
[315105115,1708824644569,-500.0,0.00019452,2]
[315105116,1708824644581,-1710.98,0.00019452,2]
[315105117,1708824644592,-824.07,0.00019452,2]
[315105118,1708824644602,-500.0,0.00019452,2]
[315105119,1708824644612,-1539.99,0.00019452,2]
[315105120,1708824644622,-506.7239864,0.00019452,2]
[315105121,1708824644632,-500.0,0.00019452,2]
[315105122,1708824644641,-502.33326353,0.00019452,2]
[315105123,1708824644651,-500.0,0.00019452,2]
[315105124,1708824644662,-500.0,0.00019452,2]
[315105125,1708824644672,-500.0,0.00019452,2]
[315105126,1708824644682,-500.0,0.00019452,2]
[315105127,1708824644691,-500.0,0.00019452,2]
[315105128,1708824644701,-500.0,0.00019452,2]
[315105129,1708824644711,-500.0,0.00019452,2]
[315105130,1708824644721,-834.84,0.00019452,2]
[315105131,1708824644730,-500.0,0.00019452,2]
[315105132,1708824644740,-500.0,0.00019452,2]
[315105133,1708824644749,-500.0,0.00019452,2]
[315105134,1708824644759,-1082.23,0.00019452,2]
[315105135,1708824644769,-958.88,0.00019452,2]
[315105136,1708824644778,-1555.93,0.00019452,2]
[315105137,1708824644788,-500.0,0.00019452,2]
[315105138,1708824644798,-500.0,0.00019452,2]
[315105139,1708824644808,-500.0,0.00019452,2]
[315105140,1708824644819,-500.0,0.00019452,2]
[315105141,1708824644828,-500.0,0.00019452,2]
[315105142,1708824644839,-500.0,0.00019452,2]
[315105143,1708824644850,-1148.25,0.00019452,2]
[315105144,1708824644861,-500.0,0.00019452,2]
[315105145,1708824644874,-5617.97,0.00019452,2]
[315105146,1708824644884,-500.0,0.00019452,2]
[315105147,1708824644893,-806.6,0.00019452,2]
[315105148,1708824644903,-500.0,0.00019452,2]
[315105149,1708824644914,-500.0,0.00019452,2]
[315105150,1708824644924,-518.08991757,0.00019452,2]
[315105151,1708824644934,-500.0,0.00019452,2]
[315105152,1708824644944,-500.0,0.00019452,2]
[315105153,1708824644953,-500.0,0.00019452,2]
[315105154,1708824644962,-500.0,0.00019452,2]
[315105155,1708824644971,-284.5,0.00019452,2]
[315105156,1708824644981,-500.0,0.00019452,2]
[315105157,1708824644991,-7339.39,0.00019452,2]
[315105158,1708824645000,-4681.05,0.00019452,2]
[315105159,1708824645010,-584.56,0.00019452,2]
[315105160,1708824645020,-500.0,0.00019452,2]
[315105161,1708824645029,-270.72050512,0.00019452,2]
[315105162,1708824645040,-500.0,0.00019452,2]
[315105163,1708824645049,-500.0,0.00019452,2]
[315105164,1708824645059,-3034.83,0.00019452,2]
[315105165,1708824645070,-556.5,0.00019452,2]
[315105166,1708824645080,-2122.58,0.00019452,2]
[315105167,1708824645092,-5391.44,0.00019452,2]
[315105168,1708824645101,-650.44,0.00019452,2]
[315105169,1708824645110,-500.0,0.00019452,2]
[315105170,1708824645119,-1306.6,0.00019452,2]
[315105171,1708824645128,-500.0,0.00019452,2]
[315105172,1708824645138,-500.0,0.00019452,2]
[315105173,1708824645147,-883.37,0.00019452,2]
[315105174,1708824645157,-1001.07,0.00019452,2]
[315105175,1708824645166,-500.0,0.00019452,2]
[315105176,1708824645175,-500.0,0.00019452,2]
[315105177,1708824645185,-1331.09,0.00019452,2]
[315105178,1708824645194,-635.0,0.00019452,2]
[315105179,1708824645204,-1397.13,0.00019452,2]
[315105180,1708824645213,-500.0,0.00019452,2]
[315105181,1708824645222,-503.13406727,0.00019452,2]
[315105182,1708824645232,-153.0,0.000195,2]
[315105183,1708824645241,-200.5294442,0.000195,2]
[315105184,1708824645250,-153.0,0.000195,2]
[315105185,1708824645259,-500.0,0.00019506,2]
[315105186,1708824645268,-500.0,0.00019561,2]
[315105187,1708824645278,-500.0,0.00019616,2]
[315105188,1708824645288,-112825.82879709,0.00019626,2]
[315105189,1708824645298,-166.666666,0.00019627,2]
[315105190,1708824645309,-500.0,0.0001967,2]
[315105191,1708824645320,-401.0588884,0.000197,2]
[315105192,1708824645330,-200.5294442,0.000197,2]
[315105193,1708824645339,-153.0,0.000197,2]
[315105194,1708824645372,-153.0,0.000197,2]
[315105195,1708824645382,-794.27,0.00019715,2]
[315105196,1708824645391,-999.35260013,0.00019725,2]
[315105197,1708824645400,-794.27,0.00019725,2]
[315105198,1708824645410,-500.0,0.00019725,2]
[315105199,1708824645419,-500.0,0.00019725,2]
[315105200,1708824645428,-500.0,0.00019725,2]
[315105201,1708824645438,-500.0,0.00019726,2]
[315105202,1708824645448,-500.0,0.00019726,2]
[315105203,1708824645458,-500.0,0.00019726,2]
[315105204,1708824645467,-238.39790068,0.00019726,2]
[315105205,1708824645478,-539.55,0.00019726,2]
[315105206,1708824645488,-239.91,0.00019726,2]
[315105207,1708824645498,-500.0,0.00019726,2]
[315105208,1708824645507,-500.0,0.00019726,2]
[315105209,1708824645517,-840.58,0.00019726,2]
[315105210,1708824645526,-500.0,0.00019726,2]
[315105211,1708824645535,-500.0,0.00019726,2]
[315105212,1708824645544,-500.0,0.00019726,2]
[315105214,1708824645554,-500.0,0.00019726,2]
[315105215,1708824645564,-1710.98,0.00019726,2]
[315105216,1708824645575,-824.07,0.00019726,2]
[315105217,1708824645587,-500.0,0.00019726,2]
[315105218,1708824645597,-1539.99,0.00019726,2]
[315105219,1708824645607,-500.0,0.00019726,2]
[315105220,1708824645616,-500.0,0.00019726,2]
[315105221,1708824645626,-500.0,0.00019726,2]
[315105222,1708824645635,-500.0,0.00019726,2]
[315105223,1708824645645,-500.0,0.00019726,2]
[315105224,1708824645655,-500.0,0.00019726,2]
[315105225,1708824645664,-834.84,0.00019726,2]
[315105226,1708824645674,-500.0,0.00019726,2]
[315105228,1708824645684,-500.0,0.00019726,2]
[315105229,1708824645693,-500.0,0.00019726,2]
[315105230,1708824645702,-1082.23,0.00019726,2]
[315105231,1708824645711,-958.88,0.00019726,2]